[Event "*** Titled Tuesday Blitz"]
[Site "Chess.com"]
[Date "2020.11.03"]
[Round "7"]
[White "AmirBagheri78"]
[Black "MPGM"]
[Result "1/2-1/2"]
[WhiteElo "2579"]
[BlackElo "2456"]
[TimeControl "180+1"]
[EndTime "11:22:49 PST"]
[Termination "Game drawn by repetition"]

1. d4 {[%clk 0:03:00.4]} 1... d5 {[%clk 0:02:58.8]} 2. Nf3 {[%clk 0:02:59.3]}
2... e6 {[%clk 0:02:58.9]} 3. Bf4 {[%clk 0:02:57.4]} 3... Nf6 {[%clk 0:02:55.3]}
4. e3 {[%clk 0:02:57.3]} 4... c5 {[%clk 0:02:55.2]} 5. Nbd2 {[%clk 0:02:56]}
5... Be7 {[%clk 0:02:54.5]} 6. c3 {[%clk 0:02:54.6]} 6... O-O {[%clk 0:02:53.5]}
7. Bd3 {[%clk 0:02:54.3]} 7... Nh5 {[%clk 0:02:48.7]} 8. Bg3 {[%clk 0:02:44.4]}
8... Nc6 {[%clk 0:02:48.4]} 9. Qc2 {[%clk 0:02:44.1]} 9... g6 {[%clk 0:02:47.5]}
10. O-O {[%clk 0:02:38.2]} 10... Nxg3 {[%clk 0:02:46.2]} 11. hxg3 {[%clk
0:02:37.6]} 11... Qc7 {[%clk 0:02:27.6]} 12. Rfe1 {[%clk 0:02:36.9]} 12... e5
{[%clk 0:02:24.6]} 13. dxe5 {[%clk 0:02:36.5]} 13... Nxe5 {[%clk 0:02:25.5]} 14.
Nxe5 {[%clk 0:02:34.7]} 14... Qxe5 {[%clk 0:02:26.4]} 15. Rad1 {[%clk
0:02:30.5]} 15... Bg4 {[%clk 0:02:17.3]} 16. Be2 {[%clk 0:02:28.9]} 16... h5
{[%clk 0:02:13.7]} 17. Qa4 {[%clk 0:02:21.5]} 17... Be6 {[%clk 0:01:57.3]} 18.
Bf3 {[%clk 0:02:14.8]} 18... Kg7 {[%clk 0:01:55.3]} 19. Qf4 {[%clk 0:02:07.5]}
19... Bf6 {[%clk 0:01:48.8]} 20. Qxe5 {[%clk 0:02:07]} 20... Bxe5 {[%clk
0:01:49.1]} 21. Nb3 {[%clk 0:02:06.5]} 21... c4 {[%clk 0:01:47.7]} 22. Nc5
{[%clk 0:01:57.7]} 22... Rad8 {[%clk 0:01:33]} 23. Re2 {[%clk 0:01:43.3]} 23...
b6 {[%clk 0:01:30.2]} 24. Na6 {[%clk 0:01:41.7]} 24... Rd6 {[%clk 0:00:59.3]}
25. Red2 {[%clk 0:01:40.7]} 25... Rfd8 {[%clk 0:00:59.7]} 26. a3 {[%clk
0:01:35.9]} 26... Bf6 {[%clk 0:00:52]} 27. Nb4 {[%clk 0:01:34.8]} 27... a5
{[%clk 0:00:52]} 28. Nxd5 {[%clk 0:01:33.7]} 28... b5 {[%clk 0:00:52.6]} 29. e4
{[%clk 0:01:25.1]} 29... Bxd5 {[%clk 0:00:51.7]} 30. exd5 {[%clk 0:01:24.8]}
30... b4 {[%clk 0:00:50]} 31. axb4 {[%clk 0:01:24.1]} 31... axb4 {[%clk
0:00:50.9]} 32. cxb4 {[%clk 0:01:24]} 32... Rb8 {[%clk 0:00:50.7]} 33. Rc2
{[%clk 0:01:22]} 33... Rxb4 {[%clk 0:00:50.5]} 34. Be2 {[%clk 0:01:17.7]} 34...
Rxb2 {[%clk 0:00:38.5]} 35. Rxb2 {[%clk 0:01:16.7]} 35... Bxb2 {[%clk
0:00:39.4]} 36. Bxc4 {[%clk 0:01:16.7]} 36... f5 {[%clk 0:00:39.7]} 37. Bb5
{[%clk 0:01:16.3]} 37... Kf6 {[%clk 0:00:39.6]} 38. Bc6 {[%clk 0:01:14.7]} 38...
Be5 {[%clk 0:00:38.6]} 39. Rb1 {[%clk 0:01:14.1]} 39... f4 {[%clk 0:00:38.3]}
40. gxf4 {[%clk 0:01:13.6]} 40... Bxf4 {[%clk 0:00:38.9]} 41. g3 {[%clk
0:01:13.5]} 41... Be5 {[%clk 0:00:39.1]} 42. Kg2 {[%clk 0:01:13.6]} 42... g5
{[%clk 0:00:39]} 43. Rb7 {[%clk 0:01:11.4]} 43... g4 {[%clk 0:00:37.6]} 44. Rh7
{[%clk 0:01:11]} 44... Kg5 {[%clk 0:00:37.1]} 45. Re7 {[%clk 0:01:08.1]} 45...
Bd4 {[%clk 0:00:36]} 46. Re4 {[%clk 0:01:06.9]} 46... Bc5 {[%clk 0:00:32.6]} 47.
Re5+ {[%clk 0:01:06.1]} 47... Kh6 {[%clk 0:00:30.5]} 48. Be8 {[%clk 0:01:05]}
48... Rf6 {[%clk 0:00:30.4]} 49. Rxh5+ {[%clk 0:01:00.7]} 49... Kg7 {[%clk
0:00:30.8]} 50. Rg5+ {[%clk 0:00:34.9]} 50... Kf8 {[%clk 0:00:30.6]} 51. Bb5
{[%clk 0:00:32]} 51... Rxf2+ {[%clk 0:00:30.2]} 52. Kh1 {[%clk 0:00:31.9]} 52...
Rb2 {[%clk 0:00:24.7]} 53. Bc4 {[%clk 0:00:28.5]} 53... Rc2 {[%clk 0:00:20.4]}
54. Rxg4 {[%clk 0:00:27.6]} 54... Ke7 {[%clk 0:00:18.7]} 55. Re4+ {[%clk
0:00:27.1]} 55... Kf6 {[%clk 0:00:17.5]} 56. Rf4+ {[%clk 0:00:25.3]} 56... Kg5
{[%clk 0:00:17.3]} 57. Bd3 {[%clk 0:00:25]} 57... Rd2 {[%clk 0:00:16.1]} 58. Be4
{[%clk 0:00:25]} 58... Bd6 {[%clk 0:00:14.9]} 59. Rf5+ {[%clk 0:00:20.9]} 59...
Kg4 {[%clk 0:00:14.4]} 60. Rf6 {[%clk 0:00:21.2]} 60... Bxg3 {[%clk 0:00:10.5]}
61. Rg6+ {[%clk 0:00:21.2]} 61... Kf4 {[%clk 0:00:09.2]} 62. Bf5 {[%clk
0:00:18.2]} 62... Kxf5 {[%clk 0:00:05]} 63. Rxg3 {[%clk 0:00:17.1]} 63... Rxd5
{[%clk 0:00:05.4]} 64. Rf3+ {[%clk 0:00:15.8]} 64... Ke4 {[%clk 0:00:06.3]} 65.
Rf8 {[%clk 0:00:15.6]} 65... Re5 {[%clk 0:00:06.2]} 66. Rf7 {[%clk 0:00:15.5]}
66... Kd4 {[%clk 0:00:07.1]} 67. Rf8 {[%clk 0:00:15.8]} 67... Re4 {[%clk
0:00:08]} 68. Rf7 {[%clk 0:00:16]} 68... Re5 {[%clk 0:00:07.8]} 69. Kg2 {[%clk
0:00:15.5]} 69... Re4 {[%clk 0:00:04.9]} 70. Kf3 {[%clk 0:00:15.6]} 70... Re5
{[%clk 0:00:05.8]} 71. Kf2 {[%clk 0:00:15.3]} 71... Kd5 {[%clk 0:00:06.1]} 72.
Rd7+ {[%clk 0:00:15.3]} 72... Ke6 {[%clk 0:00:06.6]} 73. Rd4 {[%clk 0:00:15.4]}
73... Rd5 {[%clk 0:00:07.5]} 74. Ra4 {[%clk 0:00:15.4]} 74... Kf5 {[%clk
0:00:07.6]} 75. Ke3 {[%clk 0:00:15.4]} 75... Ke5 {[%clk 0:00:07.8]} 76. Rb4
{[%clk 0:00:14.9]} 76... Kd6 {[%clk 0:00:08]} 77. Rc4 {[%clk 0:00:14.8]} 77...
Rb5 {[%clk 0:00:07.8]} 78. Rh4 {[%clk 0:00:14.4]} 78... Kc5 {[%clk 0:00:07.8]}
79. Kd3 {[%clk 0:00:14.4]} 79... Rb3+ {[%clk 0:00:07.8]} 80. Kc2 {[%clk
0:00:14.5]} 80... Rg3 {[%clk 0:00:07.9]} 81. Rh5+ {[%clk 0:00:14.5]} 81... Kd4
{[%clk 0:00:08.3]} 82. Rh4+ {[%clk 0:00:14.9]} 82... Kc5 {[%clk 0:00:08.6]} 83.
Rh5+ {[%clk 0:00:15.2]} 83... Kc4 {[%clk 0:00:08.9]} 84. Rh4+ {[%clk 0:00:15.5]}
84... Kc5 {[%clk 0:00:09.3]} 1/2-1/2

[Event "*** Titled Tuesday Blitz"]
[Site "Chess.com"]
[Date "2020.11.03"]
[Round "7"]
[White "Aygehovit1992"]
[Black "Radzio1987"]
[Result "1/2-1/2"]
[WhiteElo "2648"]
[BlackElo "2807"]
[TimeControl "180+1"]
[EndTime "11:22:53 PST"]
[Termination "Game drawn by 50-move rule"]

1. e4 {[%clk 0:03:00.9]} 1... c6 {[%clk 0:02:58.5]} 2. d4 {[%clk 0:02:58]} 2...
d5 {[%clk 0:02:59.4]} 3. f3 {[%clk 0:02:58.1]} 3... Qb6 {[%clk 0:02:58.3]} 4. a4
{[%clk 0:02:57.2]} 4... dxe4 {[%clk 0:02:57.1]} 5. a5 {[%clk 0:02:55.6]} 5...
Qc7 {[%clk 0:02:56.8]} 6. fxe4 {[%clk 0:02:55.5]} 6... e5 {[%clk 0:02:57]} 7.
Nf3 {[%clk 0:02:50.5]} 7... Bg4 {[%clk 0:02:56.4]} 8. Bc4 {[%clk 0:02:49.4]}
8... Nf6 {[%clk 0:02:47.7]} 9. O-O {[%clk 0:02:36.8]} 9... Nbd7 {[%clk
0:02:47.5]} 10. Nc3 {[%clk 0:02:31]} 10... Bb4 {[%clk 0:02:44.3]} 11. Kh1 {[%clk
0:02:04.1]} 11... O-O {[%clk 0:02:41.3]} 12. Bg5 {[%clk 0:01:48]} 12... Bxc3
{[%clk 0:02:33.2]} 13. bxc3 {[%clk 0:01:46.6]} 13... Nxe4 {[%clk 0:02:03.3]} 14.
Be7 {[%clk 0:01:46.3]} 14... Rfe8 {[%clk 0:02:03.5]} 15. Bxf7+ {[%clk
0:01:41.6]} 15... Kxf7 {[%clk 0:02:03.3]} 16. Nxe5+ {[%clk 0:01:40.4]} 16...
Kxe7 {[%clk 0:02:02.6]} 17. Qxg4 {[%clk 0:01:38.4]} 17... Ndf6 {[%clk 0:01:46]}
18. Qxg7+ {[%clk 0:01:23.1]} 18... Kd8 {[%clk 0:01:45.6]} 19. Nf7+ {[%clk
0:01:21.7]} 19... Kc8 {[%clk 0:01:45.8]} 20. Rxf6 {[%clk 0:01:18.2]} 20... Nxf6
{[%clk 0:01:46.7]} 21. Qxf6 {[%clk 0:01:19.1]} 21... Rf8 {[%clk 0:01:29.4]} 22.
Qe6+ {[%clk 0:00:38]} 22... Qd7 {[%clk 0:01:25.3]} 23. Nd6+ {[%clk 0:00:35.2]}
23... Kc7 {[%clk 0:01:25.2]} 24. Qxd7+ {[%clk 0:00:35.4]} 24... Kxd7 {[%clk
0:01:26.1]} 25. Nxb7 {[%clk 0:00:36.3]} 25... Rf2 {[%clk 0:01:26.4]} 26. Nc5+
{[%clk 0:00:36.8]} 26... Kc7 {[%clk 0:01:26.5]} 27. Re1 {[%clk 0:00:34.4]} 27...
Re8 {[%clk 0:01:25.1]} 28. Rb1 {[%clk 0:00:31.2]} 28... Ree2 {[%clk 0:01:22.2]}
29. h3 {[%clk 0:00:02.7]} 29... Rxg2 {[%clk 0:01:21.1]} 30. Rb7+ {[%clk
0:00:02.7]} 30... Kc8 {[%clk 0:01:21.3]} 31. Rxa7 {[%clk 0:00:03.2]} 31... Rgf2
{[%clk 0:01:19.6]} 32. Ra8+ {[%clk 0:00:03]} 32... Kc7 {[%clk 0:01:19.3]} 33.
Ra7+ {[%clk 0:00:03.1]} 33... Kb8 {[%clk 0:01:19.6]} 34. Rb7+ {[%clk 0:00:02.5]}
34... Kc8 {[%clk 0:01:19.6]} 35. Kg1 {[%clk 0:00:03.4]} 35... Rxc2 {[%clk
0:01:18.8]} 36. Rxh7 {[%clk 0:00:02.7]} 36... Rg2+ {[%clk 0:01:18.3]} 37. Kf1
{[%clk 0:00:01.7]} 37... Rh2 {[%clk 0:01:18.5]} 38. Rh8+ {[%clk 0:00:01.7]}
38... Kc7 {[%clk 0:01:18.5]} 39. Rh7+ {[%clk 0:00:02.6]} 39... Kd8 {[%clk
0:01:18.9]} 40. Rh8+ {[%clk 0:00:02.8]} 40... Ke7 {[%clk 0:01:19.3]} 41. Kg1
{[%clk 0:00:02.6]} 41... Rhd2 {[%clk 0:01:18.6]} 42. Rh7+ {[%clk 0:00:03.1]}
42... Kf6 {[%clk 0:01:17.1]} 43. Ne4+ {[%clk 0:00:02.8]} 43... Kg6 {[%clk
0:01:16.8]} 44. Nxd2 {[%clk 0:00:03.1]} 44... Kxh7 {[%clk 0:01:17.1]} 45. Ne4
{[%clk 0:00:03.4]} 45... Ra2 {[%clk 0:01:14.2]} 46. a6 {[%clk 0:00:02.4]} 46...
Rxa6 {[%clk 0:01:13.9]} 47. Kf2 {[%clk 0:00:03.3]} 47... Kg6 {[%clk 0:01:13.9]}
48. Ke3 {[%clk 0:00:04.2]} 48... Kf5 {[%clk 0:01:14.2]} 49. Kd3 {[%clk
0:00:04.6]} 49... Ra1 {[%clk 0:01:11.9]} 50. Nc5 {[%clk 0:00:03.4]} 50... Rh1
{[%clk 0:01:10.7]} 51. Kc4 {[%clk 0:00:03.2]} 51... Rxh3 {[%clk 0:01:10.6]} 52.
Na6 {[%clk 0:00:04.1]} 52... Ke6 {[%clk 0:01:09.8]} 53. Nb4 {[%clk 0:00:03.7]}
53... Kd6 {[%clk 0:01:10.2]} 54. Nd3 {[%clk 0:00:02.4]} 54... Rh4 {[%clk
0:01:10.6]} 55. Nc5 {[%clk 0:00:03.3]} 55... Rh5 {[%clk 0:01:10.5]} 56. Nb7+
{[%clk 0:00:03.4]} 56... Kc7 {[%clk 0:01:09.9]} 57. Nc5 {[%clk 0:00:04.3]} 57...
Kb6 {[%clk 0:01:10.1]} 58. Nd3 {[%clk 0:00:05.2]} 58... Ka5 {[%clk 0:01:09.6]}
59. Nc5 {[%clk 0:00:05.6]} 59... Kb6 {[%clk 0:01:09.8]} 60. Nd3 {[%clk
0:00:05.3]} 60... Ra5 {[%clk 0:01:09.7]} 61. Nc5 {[%clk 0:00:06.2]} 61... Kc7
{[%clk 0:01:09.9]} 62. Nd3 {[%clk 0:00:05.8]} 62... Kd6 {[%clk 0:01:10.1]} 63.
Nc5 {[%clk 0:00:06]} 63... Ra1 {[%clk 0:01:09.8]} 64. Ne4+ {[%clk 0:00:05.9]}
64... Kc7 {[%clk 0:01:08.4]} 65. Nc5 {[%clk 0:00:06.8]} 65... Kb6 {[%clk
0:01:08.6]} 66. Nd3 {[%clk 0:00:06.4]} 66... Ra4+ {[%clk 0:01:08.6]} 67. Kb3
{[%clk 0:00:06.7]} 67... Kb5 {[%clk 0:01:08.8]} 68. Nb4 {[%clk 0:00:05.8]} 68...
Ra8 {[%clk 0:01:07.5]} 69. Nd3 {[%clk 0:00:05.2]} 69... Rh8 {[%clk 0:01:06.3]}
70. Nc5 {[%clk 0:00:05.4]} 70... Rh1 {[%clk 0:01:05.6]} 71. Ne4 {[%clk
0:00:05.1]} 71... Rb1+ {[%clk 0:01:05.6]} 72. Kc2 {[%clk 0:00:05.1]} 72... Ra1
{[%clk 0:01:05.9]} 73. Nd6+ {[%clk 0:00:05.4]} 73... Kb6 {[%clk 0:01:06.3]} 74.
Nc4+ {[%clk 0:00:05.7]} 74... Kc7 {[%clk 0:01:06.5]} 75. Ne5 {[%clk 0:00:05.9]}
75... Kd6 {[%clk 0:01:06.3]} 76. Nd3 {[%clk 0:00:06.2]} 76... Kd5 {[%clk
0:01:05]} 77. Kb3 {[%clk 0:00:05.1]} 77... Ra8 {[%clk 0:01:02.5]} 78. Nb4+
{[%clk 0:00:05]} 78... Kd6 {[%clk 0:01:02.8]} 79. Kc4 {[%clk 0:00:05.9]} 79...
Ra5 {[%clk 0:01:02.9]} 80. Nd3 {[%clk 0:00:05.4]} 80... Ra4+ {[%clk 0:01:02.9]}
81. Nb4 {[%clk 0:00:05.3]} 81... Ra8 {[%clk 0:01:02.2]} 82. Nd3 {[%clk
0:00:05.6]} 82... Rc8 {[%clk 0:01:02.1]} 83. Nc5 {[%clk 0:00:05.6]} 83... Rh8
{[%clk 0:01:01.5]} 84. Nb7+ {[%clk 0:00:05.6]} 84... Kc7 {[%clk 0:01:01.8]} 85.
Nc5 {[%clk 0:00:06.5]} 85... Kb6 {[%clk 0:01:02.1]} 86. Nd3 {[%clk 0:00:07.4]}
86... Rh5 {[%clk 0:01:02.1]} 87. Nc5 {[%clk 0:00:07.6]} 87... Rg5 {[%clk
0:01:02]} 88. Nd3 {[%clk 0:00:07.7]} 88... Ra5 {[%clk 0:01:01.4]} 89. Nc5 {[%clk
0:00:08.6]} 89... Ra7 {[%clk 0:01:01.2]} 90. Nd3 {[%clk 0:00:08.1]} 90... Ra4+
{[%clk 0:01:01.2]} 91. Kb3 {[%clk 0:00:08.5]} 91... Kb5 {[%clk 0:01:01.1]} 92.
Nb4 {[%clk 0:00:07.8]} 92... Ra1 {[%clk 0:00:59.4]} 93. Nd3 {[%clk 0:00:07.9]}
93... Rb1+ {[%clk 0:00:59.5]} 94. Kc2 {[%clk 0:00:08.2]} 94... Rh1 {[%clk
0:00:58.9]} 95. Kb3 {[%clk 0:00:08.2]} 95... Rb1+ {[%clk 0:00:58.5]} 96. Kc2
{[%clk 0:00:08.1]} 96... Rh1 {[%clk 0:00:50.8]} 97. Kb3 {[%clk 0:00:07.7]} 97...
Rh3 {[%clk 0:00:50.8]} 98. Nc5 {[%clk 0:00:07.7]} 98... Rg3 {[%clk 0:00:50.5]}
99. Ne4 {[%clk 0:00:07.4]} 99... Re3 {[%clk 0:00:50.4]} 100. Nd6+ {[%clk
0:00:07.5]} 100... Ka6 {[%clk 0:00:50.7]} 101. Kc4 {[%clk 0:00:06.9]} 101... Kb6
{[%clk 0:00:50]} 1/2-1/2

[Event "*** Titled Tuesday Blitz"]
[Site "Chess.com"]
[Date "2020.11.03"]
[Round "7"]
[White "Kobalia"]
[Black "Aleksey_Sorokin"]
[Result "1/2-1/2"]
[WhiteElo "2738"]
[BlackElo "2876"]
[TimeControl "180+1"]
[EndTime "11:23:03 PST"]
[Termination "Game drawn - insufficient material"]

1. e4 {[%clk 0:03:00.9]} 1... c6 {[%clk 0:02:59.7]} 2. Nf3 {[%clk 0:02:51.2]}
2... d5 {[%clk 0:03:00.6]} 3. d3 {[%clk 0:02:51.5]} 3... g6 {[%clk 0:02:58.2]}
4. e5 {[%clk 0:02:51.3]} 4... Bg7 {[%clk 0:02:55.7]} 5. d4 {[%clk 0:02:51.6]}
5... Bg4 {[%clk 0:02:55.4]} 6. Nbd2 {[%clk 0:02:50.8]} 6... e6 {[%clk
0:02:53.9]} 7. h3 {[%clk 0:02:50.7]} 7... Bxf3 {[%clk 0:02:53.4]} 8. Nxf3 {[%clk
0:02:51.6]} 8... Nd7 {[%clk 0:02:48.9]} 9. Bd3 {[%clk 0:02:49.6]} 9... c5 {[%clk
0:02:46.6]} 10. c3 {[%clk 0:02:49.3]} 10... Ne7 {[%clk 0:02:45.7]} 11. O-O
{[%clk 0:02:48.8]} 11... Nc6 {[%clk 0:02:45.7]} 12. Be3 {[%clk 0:02:48.1]} 12...
O-O {[%clk 0:02:44.8]} 13. Qd2 {[%clk 0:02:47.6]} 13... Rc8 {[%clk 0:02:43.3]}
14. Rfe1 {[%clk 0:02:42.1]} 14... cxd4 {[%clk 0:02:42.5]} 15. cxd4 {[%clk
0:02:41.6]} 15... Qa5 {[%clk 0:02:42.7]} 16. Qe2 {[%clk 0:02:24.9]} 16... Nb4
{[%clk 0:02:36.3]} 17. Bd2 {[%clk 0:02:03.7]} 17... Qb6 {[%clk 0:02:07.8]} 18.
Bb5 {[%clk 0:01:51.1]} 18... Nc6 {[%clk 0:02:07.8]} 19. Be3 {[%clk 0:01:46]}
19... a6 {[%clk 0:02:06.8]} 20. Bd3 {[%clk 0:01:42.7]} 20... Nb4 {[%clk
0:02:04.9]} 21. Red1 {[%clk 0:01:42]} 21... Nxd3 {[%clk 0:02:04.2]} 22. Rxd3
{[%clk 0:01:41.5]} 22... Rc6 {[%clk 0:02:02.4]} 23. Nh2 {[%clk 0:01:37.2]} 23...
Rfc8 {[%clk 0:01:58.3]} 24. Rd2 {[%clk 0:01:36.2]} 24... Rc1+ {[%clk 0:01:50.3]}
25. Rxc1 {[%clk 0:01:34.1]} 25... Rxc1+ {[%clk 0:01:51.2]} 26. Nf1 {[%clk
0:01:34.6]} 26... Qc7 {[%clk 0:01:46.9]} 27. Rd1 {[%clk 0:01:30.9]} 27... Rxd1
{[%clk 0:01:45.2]} 28. Qxd1 {[%clk 0:01:30.6]} 28... Kf8 {[%clk 0:01:40.7]} 29.
Nd2 {[%clk 0:01:27.9]} 29... Ke8 {[%clk 0:01:36.5]} 30. g4 {[%clk 0:01:27.3]}
30... Bf8 {[%clk 0:01:33.5]} 31. Kg2 {[%clk 0:01:26.4]} 31... Nb6 {[%clk
0:01:33.2]} 32. Nf3 {[%clk 0:01:18.7]} 32... Nc4 {[%clk 0:01:23.9]} 33. Bc1
{[%clk 0:01:17.9]} 33... Be7 {[%clk 0:01:21.6]} 34. b3 {[%clk 0:01:15.9]} 34...
Na5 {[%clk 0:01:20.3]} 35. Ng5 {[%clk 0:01:14.5]} 35... h6 {[%clk 0:01:09]} 36.
Nh7 {[%clk 0:01:14]} 36... g5 {[%clk 0:01:03.2]} 37. f4 {[%clk 0:01:09.4]} 37...
gxf4 {[%clk 0:00:51.1]} 38. Bxf4 {[%clk 0:01:08.3]} 38... Qc3 {[%clk 0:00:50.2]}
39. Bxh6 {[%clk 0:01:05.4]} 39... Nc6 {[%clk 0:00:50.1]} 40. Qd2 {[%clk
0:00:58.7]} 40... Qxd4 {[%clk 0:00:30.3]} 41. Qxd4 {[%clk 0:00:54.6]} 41... Nxd4
{[%clk 0:00:31.2]} 42. Bf4 {[%clk 0:00:49.9]} 42... Ne2 {[%clk 0:00:23.3]} 43.
Bd2 {[%clk 0:00:40]} 43... Bh4 {[%clk 0:00:19.4]} 44. Nf6+ {[%clk 0:00:38.5]}
44... Ke7 {[%clk 0:00:15.6]} 45. Bb4+ {[%clk 0:00:37.5]} 45... Kd8 {[%clk
0:00:15.6]} 46. Ba5+ {[%clk 0:00:31.7]} 46... Ke7 {[%clk 0:00:15.3]} 47. Bb4+
{[%clk 0:00:31.9]} 47... Kd8 {[%clk 0:00:15.8]} 48. Bd2 {[%clk 0:00:27.7]} 48...
Ke7 {[%clk 0:00:14.6]} 49. g5 {[%clk 0:00:26.7]} 49... Nd4 {[%clk 0:00:12]} 50.
Bb4+ {[%clk 0:00:23.7]} 50... Kd8 {[%clk 0:00:11.9]} 51. Bc5 {[%clk 0:00:21.8]}
51... Nc6 {[%clk 0:00:10.7]} 52. Bb6+ {[%clk 0:00:19.1]} 52... Ke7 {[%clk
0:00:10.8]} 53. Bc5+ {[%clk 0:00:18.6]} 53... Kd8 {[%clk 0:00:11.2]} 54. Bb6+
{[%clk 0:00:18.9]} 54... Kc8 {[%clk 0:00:11.6]} 55. Ne8 {[%clk 0:00:19.1]} 55...
Nxe5 {[%clk 0:00:10.6]} 56. Be3 {[%clk 0:00:16.1]} 56... Kd7 {[%clk 0:00:10]}
57. Nf6+ {[%clk 0:00:15.2]} 57... Ke7 {[%clk 0:00:09.5]} 58. Bc5+ {[%clk
0:00:15.1]} 58... Kd8 {[%clk 0:00:09.7]} 59. Bb6+ {[%clk 0:00:15.3]} 59... Kc8
{[%clk 0:00:10.1]} 60. Be3 {[%clk 0:00:14.2]} 60... Nd7 {[%clk 0:00:10.1]} 61.
Ne8 {[%clk 0:00:11.3]} 61... Kd8 {[%clk 0:00:09]} 62. Nd6 {[%clk 0:00:10.9]}
62... Ke7 {[%clk 0:00:09.3]} 63. Nxb7 {[%clk 0:00:10.8]} 63... e5 {[%clk
0:00:09.7]} 64. Kf3 {[%clk 0:00:10.6]} 64... d4 {[%clk 0:00:09.6]} 65. Bd2
{[%clk 0:00:10.9]} 65... Ke6 {[%clk 0:00:09.1]} 66. Kg4 {[%clk 0:00:11]} 66...
Bf2 {[%clk 0:00:08.4]} 67. h4 {[%clk 0:00:10.9]} 67... e4 {[%clk 0:00:08.4]} 68.
Bb4 {[%clk 0:00:10.5]} 68... f5+ {[%clk 0:00:08.2]} 69. gxf6 {[%clk 0:00:09]}
69... Nxf6+ {[%clk 0:00:08.4]} 70. Kh3 {[%clk 0:00:07.5]} 70... d3 {[%clk
0:00:08.3]} 71. Bd2 {[%clk 0:00:05.4]} 71... e3 {[%clk 0:00:08.6]} 72. Nc5+
{[%clk 0:00:05.5]} 72... Kd5 {[%clk 0:00:08.9]} 73. Bxe3 {[%clk 0:00:05.9]}
73... Bxe3 {[%clk 0:00:07.1]} 74. Nxd3 {[%clk 0:00:06.8]} 74... a5 {[%clk
0:00:06.2]} 75. Nb2 {[%clk 0:00:04.3]} 75... Bd2 {[%clk 0:00:04.9]} 76. Nc4
{[%clk 0:00:04]} 76... Bc3 {[%clk 0:00:05.2]} 77. Kg3 {[%clk 0:00:03.7]} 77...
a4 {[%clk 0:00:05.2]} 78. Kf4 {[%clk 0:00:03.4]} 78... Kc5 {[%clk 0:00:04.6]}
79. Kf5 {[%clk 0:00:03.3]} 79... Nh5 {[%clk 0:00:04.2]} 80. Kg5 {[%clk
0:00:02.6]} 80... Ng3 {[%clk 0:00:04.4]} 81. h5 {[%clk 0:00:03]} 81... Ne4+
{[%clk 0:00:04.5]} 82. Kg6 {[%clk 0:00:03.3]} 82... Nd2 {[%clk 0:00:02.9]} 83.
Nxd2 {[%clk 0:00:02.7]} 83... Bxd2 {[%clk 0:00:03.8]} 84. bxa4 {[%clk
0:00:03.1]} 84... Bc3 {[%clk 0:00:04.3]} 85. h6 {[%clk 0:00:03.5]} 85... Kb4
{[%clk 0:00:04.8]} 86. Kf7 {[%clk 0:00:03.9]} 86... Kxa4 {[%clk 0:00:05.2]} 87.
Kg8 {[%clk 0:00:04.5]} 87... Ka3 {[%clk 0:00:05.6]} 88. h7 {[%clk 0:00:05.2]}
88... Kxa2 {[%clk 0:00:06.1]} 89. h8=Q {[%clk 0:00:06.1]} 89... Bxh8 {[%clk
0:00:06.1]} 1/2-1/2